[Event "Niedersachsen-ch B 2024"]
[Site "Verden Aller"]
[Date "2024.01.04"]
[Round "1.10"]
[White "Balazs, Kata"]
[Black "Freise, Linus"]
[Result "1-0"]
[ECO "D00"]
[WhiteElo "1723"]
[BlackElo "1480"]
[Annotator "NA RC"]
[PlyCount "87"]
[EventDate "2024.01.01"]
[EventType "swiss"]
[EventCountry "GER"]
[SourceTitle "playchess.com"]
[Source "ChessBase"]
[SourceQuality "1"]
[TimeControl "40/5400+30:1800+30"]

1. d4 {[%emt 0:00:03]} d5 {[%emt 0:00:09]} 2. Nc3 {[%emt 0:00:18]} Nf6 {[%emt 0:00:12]} 3. Bf4 {[%emt 0:00:27]} a6 {[%emt 0:00:06]} 4. Qd3 {[%emt 0:05:41]} e6 {[%emt 0:08:24]} 5. a3 {[%emt 0:04:04]} Bd6 {[%emt 0:00:25]} 6. Bg5 {[%emt 0:02:45]} Nbd7 {[%emt 0:02:24]} 7. Nf3 {[%emt 0:05:05]} c5 {[%emt 0:03:46]} 8. e4 {[%emt 0:10:40]} dxe4 {[%emt 0:10:57]} 9. Nxe4 {[%emt 0:02:36]} Be7 {[%emt 0:00:25]} 10. Bxf6 {[%emt 0:14:14]} Nxf6 {[%emt 0:01:05]} 11. Nxc5 {[%emt 0:02:23]} b6 {[%emt 0:05:08]} 12. Ne4 {[%emt 0:03:11]} Bb7 {[%emt 0:00:39]} 13. Ned2 {[%emt 0:45:33]} Rc8 {[%emt 0:01:54]} 14. c4 {[%emt 0:00:00]} Qc7 {[%emt 0:02:48]} 15. Be2 {[%emt 0:00:00]} Bd6 {[%emt 0:04:54]} 16. O-O {[%emt 0:00:00]} g5 {[%emt 0:02:44]} 17. h3 {[%emt 0:00:00]} g4 {[%emt 0:06:44]} 18. hxg4 {[%emt 0:00:00]} Nxg4 {[%emt 0:04:14]} 19. Ne4 {[%emt 0:00:00]} Bf4 {[%emt 0:03:38]} 20. d5 {[%emt 0:00:00]} f5 {[%emt 0:07:12]} 21. Nc3 {[%emt 0:00:00]} Rg8 {[%emt 0:01:31]} 22. Rad1 {[%emt 0:00:00]} Rd8 {[%emt 0:08:47]} 23. Nd4 {[%emt 0:00:00]} Bh2+ {[%emt 0:03:07]} 24. Kh1 {[%emt 0:00:00]} Bg1 {[%emt 0:00:28]} 25. f4 {[%emt 0:00:00]} Bxd4 {[%emt 0:16:39]} 26. Qxd4 {[%emt 0:00:00]} Qe7 {[%emt 0:00:49]} 27. Bxg4 {[%emt 0:00:00]} Rxg4 {[%emt 0:00:11]} 28. Qh8+ {[%emt 0:00:00]} Kf7 {[%emt 0:02:26]} 29. dxe6+ {[%emt 0:00:00]} Qxe6 {[%emt 0:02:02]} 30. Qxh7+ {[%emt 0:02:30]} Rg7 {[%emt 0:00:07]} 31. Qh5+ {[%emt 0:00:21]} Rg6 {[%emt 0:01:08]} 32. Rxd8 {[%emt 0:03:55]} Bxg2+ {[%emt 0:00:05]} 33. Kh2 {[%emt 0:00:23]} Bxf1 {[%emt 0:00:27]} 34. Qh7+ {[%emt 0:02:13]} Rg7 {[%emt 0:00:03]} 35. Qh8 {[%emt 0:00:36]} Qe7 {[%emt 0:01:37]} 36. Qh5+ {[%emt 0:00:43]} Rg6 {[%emt 0:00:37]} 37. Rh8 {[%emt 0:00:35]} Qf6 {[%emt 0:00:17]} 38. Rh7+ {[%emt 0:00:28]} Ke6 {[%emt 0:00:05]} 39. Rh8 {[%emt 0:00:35]} Qg7 {[%emt 0:00:54]} 40. Re8+ {[%emt 0:00:35]} Kf7 {[%emt 0:00:15]} 41. Rc8 {[%emt 0:08:46]} Qf6 {[%emt 0:20:34]} 42. Qh7+ {[%emt 0:01:05]} Rg7 {[%emt 0:02:22]} 43. Rc7+ {[%emt 0:00:23]} Ke6 {[%emt 0:00:09]} 44. Rxg7 {[%emt 0:01:24]} 1-0

[Event "Niedersachsen-ch B 2024"]
[Site "Verden Aller"]
[Date "2024.01.04"]
[Round "1.11"]
[White "Margaryan, Venera"]
[Black "Spieker, Hans-Joachim"]
[Result "0-1"]
[ECO "D70"]
[WhiteElo "1473"]
[BlackElo "1719"]
[Annotator "NA"]
[PlyCount "62"]
[EventDate "2024.01.01"]
[EventType "swiss"]
[EventCountry "GER"]
[SourceTitle "playchess.com"]
[Source "ChessBase"]
[SourceQuality "1"]
[TimeControl "40/5400+30:1800+30"]

1. d4 {[%emt 0:00:02]} Nf6 {[%emt 0:00:03]} 2. Nf3 {[%emt 0:00:07]} d5 {[%emt 0:00:22]} 3. c4 {[%emt 0:00:05]} g6 {[%emt 0:01:10]} 4. cxd5 {[%emt 0:01:41]} Nxd5 {[%emt 0:00:02]} 5. e4 {[%emt 0:03:13]} Nb6 {[%emt 0:00:06]} 6. Nc3 {[%emt 0:01:15]} Bg7 {[%emt 0:00:08]} 7. Be3 {[%emt 0:01:25]} O-O {[%emt 0:03:56]} 8. Be2 {[%emt 0:01:07]} Nc6 {[%emt 0:01:48]} 9. Qd2 {[%emt 0:05:11]} Bg4 {[%emt 0:01:53]} 10. d5 {[%emt 0:09:40]} Bxf3 {[%emt 0:02:57]} 11. Bxf3 {[%emt 0:06:54]} Ne5 {[%emt 0:02:29]} 12. Qe2 {[%emt 0:05:24]} Nxf3+ {[%emt 0:02:07]} 13. Qxf3 {[%emt 0:00:43]} Nc4 {[%emt 0:00:49]} 14. Bc1 {[%emt 0:03:17]} Qd6 {[%emt 0:04:03]} 15. Qe2 {[%emt 0:03:33]} Qb4 {[%emt 0:04:15]} 16. Qc2 {[%emt 0:03:45]} f5 {[%emt 0:07:29]} 17. exf5 {[%emt 0:06:42]} Rxf5 {[%emt 0:00:18]} 18. a3 {[%emt 0:02:32]} Re5+ {[%emt 0:06:07]} 19. Kf1 {[%emt 0:03:27]} Qc5 {[%emt 0:02:22]} 20. Qd3 {[%emt 0:07:47]} Rf8 {[%emt 0:03:14]} 21. f3 {[%emt 0:08:19]} Ne3+ {[%emt 0:04:00]} 22. Bxe3 {[%emt 0:00:18]} Rxe3 {[%emt 0:00:01]} 23. Na4 {[%emt 0:06:38]} Rxd3 {[%emt 0:02:55]} 24. Nxc5 {[%emt 0:00:09]} Rxd5 {[%emt 0:00:16]} 25. Ne6 {[%emt 0:04:30]} Bxb2 {[%emt 0:03:32]} 26. Nxc7 {[%emt 0:00:19]} Rd7 {[%emt 0:00:21]} 27. Re1 {[%emt 0:06:58]} Rxc7 {[%emt 0:00:14]} 28. Kf2 {[%emt 0:01:01]} Rc2+ {[%emt 0:00:23]} 29. Kg3 {[%emt 0:00:14]} Bxa3 {[%emt 0:00:17]} 30. Re4 {[%emt 0:00:57]} Bd6+ {[%emt 0:00:12]} 31. Kh4 {[%emt 0:01:08]} Rxg2 {[%emt 0:01:14]} 0-1

[Event "Niedersachsen-ch B 2024"]
[Site "Verden Aller"]
[Date "2024.01.04"]
[Round "1.12"]
[White "Rademacher, Bengt"]
[Black "Nechitaylo, Lev"]
[Result "1-0"]
[ECO "B51"]
[WhiteElo "1702"]
[BlackElo "1456"]
[Annotator "NA RC"]
[PlyCount "43"]
[EventDate "2024.01.01"]
[EventType "swiss"]
[EventCountry "GER"]
[SourceTitle "playchess.com"]
[Source "ChessBase"]
[SourceQuality "1"]
[TimeControl "40/5400+30:1800+30"]

1. e4 {[%emt 0:00:04]} c5 {[%emt 0:00:29]} 2. Nf3 {[%emt 0:00:23]} Nc6 {[%emt 0:00:18]} 3. Bb5 {[%emt 0:00:30]} d6 {[%emt 0:03:13]} 4. O-O {[%emt 0:03:31]} Bd7 {[%emt 0:00:26]} 5. Re1 {[%emt 0:01:22]} e5 {[%emt 0:00:11]} 6. c3 {[%emt 0:01:31]} Nf6 {[%emt 0:01:48]} 7. d4 {[%emt 0:04:00]} Qb6 {[%emt 0:01:35]} 8. dxe5 {[%emt 0:06:18]} Nxe5 {[%emt 0:02:08]} 9. Bxd7+ {[%emt 0:03:07]} Nexd7 {[%emt 0:00:08]} 10. Nbd2 {[%emt 0:04:28]} Be7 {[%emt 0:01:06]} 11. Nc4 {[%emt 0:01:10]} Qc7 {[%emt 0:01:20]} 12. Bf4 {[%emt 0:03:52]} O-O-O {[%emt 0:12:53]} 13. Bxd6 {[%emt 0:07:54]} Bxd6 {[%emt 0:01:30]} 14. Nxd6+ {[%emt 0:00:12]} Kb8 {[%emt 0:00:19]} 15. Nxf7 {[%emt 0:00:55]} Ne5 {[%emt 0:02:35]} 16. Nxd8 {[%emt 0:01:17]} Rxd8 {[%emt 1:08:31]} 17. Qe2 {[%emt 0:02:50]} Ng6 {[%emt 0:00:00]} 18. Rad1 {[%emt 0:04:37]} Re8 {[%emt 0:00:00]} 19. Qd3 {[%emt 0:01:20]} Ka8 {[%emt 0:00:00]} 20. e5 {[%emt 0:01:38]} Ng4 {[%emt 0:00:00]} 21. Qd6 {[%emt 0:01:39]} Qa5 {[%emt 0:00:00]} 22. Qd7 {[%emt 0:00:27]} 1-0

[Event "Niedersachsen-ch B 2024"]
[Site "Verden Aller"]
[Date "2024.01.04"]
[Round "1.13"]
[White "Laun, Kurt"]
[Black "Nordhorn, Horst"]
[Result "1-0"]
[ECO "A21"]
[WhiteElo "1448"]
[BlackElo "1696"]
[Annotator "NA RC"]
[PlyCount "97"]
[EventDate "2024.01.01"]
[EventType "swiss"]
[EventCountry "GER"]
[SourceTitle "playchess.com"]
[Source "ChessBase"]
[SourceQuality "1"]
[TimeControl "40/5400+30:1800+30"]

1. c4 {[%emt 0:00:03]} e5 {[%emt 0:00:20]} 2. Nc3 {[%emt 0:00:27]} d6 {[%emt 0:00:20]} 3. Nf3 {[%emt 0:00:27]} c6 {[%emt 0:01:02]} 4. d4 {[%emt 0:00:55]} exd4 {[%emt 0:00:39]} 5. Nxd4 {[%emt 0:00:34]} Nf6 {[%emt 0:00:17]} 6. Bg5 {[%emt 0:01:28]} Be7 {[%emt 0:00:07]} 7. e4 {[%emt 0:00:42]} Bg4 {[%emt 0:01:14]} 8. Be2 {[%emt 0:03:28]} Bxe2 {[%emt 0:04:22]} 9. Qxe2 {[%emt 0:00:21]} Nbd7 {[%emt 0:01:32]} 10. O-O {[%emt 0:05:54]} h6 {[%emt 0:01:46]} 11. Be3 {[%emt 0:05:49]} O-O {[%emt 0:04:01]} 12. Nf5 {[%emt 0:05:25]} Re8 {[%emt 0:08:21]} 13. Rad1 {[%emt 0:02:54]} Bf8 {[%emt 0:07:17]} 14. Nxd6 {[%emt 0:08:16]} Bxd6 {[%emt 0:00:12]} 15. Rxd6 {[%emt 0:00:08]} Nxe4 {[%emt 0:01:38]} 16. Nxe4 {[%emt 0:00:43]} Rxe4 {[%emt 0:00:07]} 17. Rfd1 {[%emt 0:00:22]} Qe7 {[%emt 0:00:50]} 18. Rxd7 {[%emt 0:01:31]} Qe5 {[%emt 0:00:17]} 19. Rd8+ {[%emt 0:04:53]} Rxd8 {[%emt 0:03:17]} 20. Rxd8+ {[%emt 0:00:57]} Kh7 {[%emt 0:00:06]} 21. Qd3 {[%emt 0:08:47]} f5 {[%emt 0:01:05]} 22. g3 {[%emt 0:02:10]} Qxb2 {[%emt 0:00:54]} 23. f3 {[%emt 0:01:47]} Re5 {[%emt 0:00:19]} 24. g4 {[%emt 0:02:02]} Qa1+ {[%emt 0:01:10]} 25. Kg2 {[%emt 0:00:12]} Qxa2+ {[%emt 0:00:29]} 26. Kg3 {[%emt 0:00:40]} Qa5 {[%emt 0:01:45]} 27. Rf8 {[%emt 0:07:24]} Qe1+ {[%emt 0:01:53]} 28. Bf2 {[%emt 0:00:16]} Qb4 {[%emt 0:05:27]} 29. Rxf5 {[%emt 0:02:22]} Rxf5 {[%emt 0:00:06]} 30. Qxf5+ {[%emt 0:00:08]} Kg8 {[%emt 0:00:22]} 31. Qe6+ {[%emt 0:02:41]} Kh7 {[%emt 0:00:16]} 32. Bxa7 {[%emt 0:00:10]} Qa5 {[%emt 0:02:09]} 33. Qf5+ {[%emt 0:05:25]} Qxf5 {[%emt 0:00:39]} 34. gxf5 {[%emt 0:00:09]} b5 {[%emt 0:00:30]} 35. cxb5 {[%emt 0:00:07]} cxb5 {[%emt 0:00:04]} 36. Bc5 {[%emt 0:00:11]} Kg8 {[%emt 0:00:05]} 37. Kf4 {[%emt 0:00:16]} Kf7 {[%emt 0:00:11]} 38. h4 {[%emt 0:00:32]} g6 {[%emt 0:00:31]} 39. Bd4 {[%emt 0:00:39]} b4 {[%emt 0:00:31]} 40. f6 {[%emt 0:00:25]} Ke6 {[%emt 0:00:16]} 41. Bb2 {[%emt 0:30:32]} b3 {[%emt 0:30:11]} 42. Bc3 {[%emt 0:00:15]} Kd6 {[%emt 0:00:35]} 43. Ke4 {[%emt 0:00:18]} Ke6 {[%emt 0:00:38]} 44. Be5 {[%emt 0:00:17]} g5 {[%emt 0:01:07]} 45. hxg5 {[%emt 0:00:23]} hxg5 {[%emt 0:00:20]} 46. Bc3 {[%emt 0:00:43]} Kf7 {[%emt 0:01:05]} 47. Kf5 {[%emt 0:00:15]} Kf8 {[%emt 0:00:14]} 48. Kxg5 {[%emt 0:00:21]} Kf7 {[%emt 0:00:07]} 49. Bb2 {[%emt 0:00:19]} 1-0

[Event "Niedersachsen-ch B 2024"]
[Site "Verden Aller"]
[Date "2024.01.04"]
[Round "1.14"]
[White "Leppert, Hans-Juergen"]
[Black "Sauer, Ben"]
[Result "1-0"]
[ECO "E94"]
[WhiteElo "1683"]
[BlackElo "1427"]
[Annotator "NA RC"]
[PlyCount "57"]
[EventDate "2024.01.01"]
[EventType "swiss"]
[EventCountry "GER"]
[SourceTitle "playchess.com"]
[Source "ChessBase"]
[SourceQuality "1"]
[TimeControl "40/5400+30:1800+30"]

1. c4 {[%emt 0:00:02]} Nf6 {[%emt 0:00:14]} 2. Nc3 {[%emt 0:00:09]} g6 {[%emt 0:00:24]} 3. e4 {[%emt 0:00:13]} e5 {[%emt 0:00:28]} 4. Nf3 {[%emt 0:00:54]} d6 {[%emt 0:00:37]} 5. d4 {[%emt 0:00:39]} exd4 {[%emt 0:00:39]} 6. Nxd4 {[%emt 0:00:14]} Bg7 {[%emt 0:00:43]} 7. Be2 {[%emt 0:00:31]} O-O {[%emt 0:07:43]} 8. O-O {[%emt 0:00:14]} Re8 {[%emt 0:00:29]} 9. f3 {[%emt 0:00:55]} Nfd7 {[%emt 0:01:55]} 10. Be3 {[%emt 0:03:14]} Ne5 {[%emt 0:01:56]} 11. Qd2 {[%emt 0:00:55]} Nbc6 {[%emt 0:03:29]} 12. Rad1 {[%emt 0:03:24]} Nxd4 {[%emt 0:02:06]} 13. Bxd4 {[%emt 0:00:21]} Nc6 {[%emt 0:02:12]} 14. Bxg7 {[%emt 0:00:37]} Kxg7 {[%emt 0:00:02]} 15. Nd5 {[%emt 0:01:13]} f5 {[%emt 0:06:49]} 16. Bd3 {[%emt 0:03:07]} Rf8 {[%emt 0:03:00]} 17. Qc3+ {[%emt 0:03:52]} Kg8 {[%emt 0:01:46]} 18. f4 {[%emt 0:04:42]} Be6 {[%emt 0:03:42]} 19. exf5 {[%emt 0:02:42]} Bxf5 {[%emt 0:02:37]} 20. Bxf5 {[%emt 0:00:16]} Rxf5 {[%emt 0:00:32]} 21. Rde1 {[%emt 0:00:45]} Rf7 {[%emt 0:06:01]} 22. Re6 {[%emt 0:01:10]} Ne7 {[%emt 0:03:08]} 23. Nf6+ {[%emt 0:01:36]} Kf8 {[%emt 0:00:17]} 24. Rfe1 {[%emt 0:02:58]} c6 {[%emt 0:02:42]} 25. Ne4 {[%emt 0:05:43]} d5 {[%emt 0:03:38]} 26. Rd6 {[%emt 0:05:05]} Qb8 {[%emt 0:02:00]} 27. Qh8+ {[%emt 0:00:27]} Ng8 {[%emt 0:00:25]} 28. Nf6 {[%emt 0:00:07]} Rg7 {[%emt 0:01:46]} 29. Rd7 {[%emt 0:03:24]} 1-0

[Event "Niedersachsen-ch B 2024"]
[Site "Verden Aller"]
[Date "2024.01.04"]
[Round "1.15"]
[White "Berkenkamp, Matthis"]
[Black "Warns, Harald"]
[Result "1-0"]
[ECO "E21"]
[WhiteElo "1425"]
[BlackElo "1683"]
[Annotator "NA RC"]
[PlyCount "73"]
[EventDate "2024.01.01"]
[EventType "swiss"]
[EventCountry "GER"]
[SourceTitle "playchess.com"]
[Source "ChessBase"]
[SourceQuality "1"]
[TimeControl "40/5400+30:1800+30"]

1. Nf3 {[%emt 0:00:04]} Nf6 {[%emt 0:00:21]} 2. c4 {[%emt 0:00:30]} e6 {[%emt 0:01:17]} 3. d4 {[%emt 0:00:59]} Bb4+ {[%emt 0:01:48]} 4. Nc3 {[%emt 0:00:13]} Ne4 {[%emt 0:03:10]} 5. Qb3 {[%emt 0:01:19]} Nc6 {[%emt 0:03:32]} 6. g3 {[%emt 0:01:41]} Qf6 {[%emt 0:03:00]} 7. Be3 {[%emt 0:04:29]} a5 {[%emt 0:03:26]} 8. a3 {[%emt 0:04:35]} Bxc3+ {[%emt 0:08:32]} 9. bxc3 {[%emt 0:00:09]} O-O {[%emt 0:01:12]} 10. Bg2 {[%emt 0:01:37]} h6 {[%emt 0:06:14]} 11. O-O {[%emt 0:01:47]} Ne7 {[%emt 0:09:39]} 12. Qc2 {[%emt 0:02:35]} Nd6 {[%emt 0:06:09]} 13. Ne5 {[%emt 0:02:11]} Ndf5 {[%emt 0:07:08]} 14. Qd2 {[%emt 0:05:53]} d6 {[%emt 0:07:01]} 15. Nd3 {[%emt 0:01:36]} Ng6 {[%emt 0:02:05]} 16. c5 {[%emt 0:01:31]} d5 {[%emt 0:01:44]} 17. Nf4 {[%emt 0:03:12]} Nxe3 {[%emt 0:02:18]} 18. fxe3 {[%emt 0:00:15]} Nxf4 {[%emt 0:00:31]} 19. exf4 {[%emt 0:00:30]} Bd7 {[%emt 0:00:19]} 20. Rab1 {[%emt 0:00:57]} Rfb8 {[%emt 0:01:34]} 21. Qd3 {[%emt 0:01:29]} b5 {[%emt 0:01:36]} 22. cxb6 {[%emt 0:03:28]} Rxb6 {[%emt 0:00:05]} 23. Rxb6 {[%emt 0:00:05]} cxb6 {[%emt 0:00:30]} 24. c4 {[%emt 0:14:39]} dxc4 {[%emt 0:00:27]} 25. Qxc4 {[%emt 0:00:08]} Rc8 {[%emt 0:00:16]} 26. Qd3 {[%emt 0:00:37]} Qd8 {[%emt 0:02:58]} 27. Bb7 {[%emt 0:06:04]} Rc7 {[%emt 0:01:12]} 28. Qa6 {[%emt 0:01:05]} Qb8 {[%emt 0:10:54]} 29. Be4 {[%emt 0:01:42]} Ra7 {[%emt 0:02:37]} 30. Qc4 {[%emt 0:01:28]} b5 {[%emt 0:02:00]} 31. Rb1 {[%emt 0:00:14]} Qd6 {[%emt 0:01:38]} 32. Rxb5 {[%emt 0:02:06]} Bxb5 {[%emt 0:00:17]} 33. Qc8+ {[%emt 0:00:07]} Qf8 {[%emt 0:00:03]} 34. Bh7+ {[%emt 0:00:05]} Kxh7 {[%emt 0:01:24]} 35. Qxf8 {[%emt 0:00:13]} Bxe2 {[%emt 0:00:38]} 36. Qc5 {[%emt 0:00:09]} Rd7 {[%emt 0:01:57]} 37. Qc2+ {[%emt 0:00:09]} 1-0

[Event "Niedersachsen-ch B 2024"]
[Site "Verden Aller"]
[Date "2024.01.04"]
[Round "1.16"]
[White "Goes, Carsten"]
[Black "Kesselhut, Pascal"]
[Result "1/2-1/2"]
[ECO "B13"]
[WhiteElo "1676"]
[BlackElo "1425"]
[Annotator "NA RC"]
[PlyCount "66"]
[EventDate "2024.01.01"]
[EventType "swiss"]
[EventCountry "GER"]
[SourceTitle "playchess.com"]
[Source "ChessBase"]
[SourceQuality "1"]
[TimeControl "40/5400+30:1800+30"]

1. e4 {[%emt 0:00:05]} c6 {[%emt 0:00:04]} 2. d4 {[%emt 0:00:21]} d5 {[%emt 0:00:06]} 3. exd5 {[%emt 0:00:13]} cxd5 {[%emt 0:00:10]} 4. Bd3 {[%emt 0:00:15]} Nc6 {[%emt 0:00:20]} 5. c3 {[%emt 0:00:06]} Qc7 {[%emt 0:00:26]} 6. h3 {[%emt 0:05:01]} e6 {[%emt 0:04:42]} 7. Nf3 {[%emt 0:02:20]} g6 {[%emt 0:03:42]} 8. O-O {[%emt 0:01:04]} Bg7 {[%emt 0:00:08]} 9. Re1 {[%emt 0:00:39]} Nf6 {[%emt 0:01:53]} 10. Bg5 {[%emt 0:01:31]} O-O {[%emt 0:01:24]} 11. Nbd2 {[%emt 0:01:42]} Bd7 {[%emt 0:02:21]} 12. Nf1 {[%emt 0:02:28]} Rab8 {[%emt 0:01:26]} 13. Qd2 {[%emt 0:02:31]} Qa5 {[%emt 0:03:38]} 14. N1h2 {[%emt 0:05:38]} b5 {[%emt 0:06:42]} 15. Ne5 {[%emt 0:09:47]} Be8 {[%emt 0:06:36]} 16. a3 {[%emt 0:14:44]} Qb6 {[%emt 0:05:04]} 17. Nxc6 {[%emt 0:03:00]} Bxc6 {[%emt 0:00:37]} 18. Nf3 {[%emt 0:00:39]} Rfe8 {[%emt 0:05:00]} 19. Ne5 {[%emt 0:05:07]} Nd7 {[%emt 0:01:35]} 20. Ng4 {[%emt 0:03:18]} e5 {[%emt 0:07:20]} 21. dxe5 {[%emt 0:06:32]} Nxe5 {[%emt 0:01:08]} 22. Nxe5 {[%emt 0:05:32]} Bxe5 {[%emt 0:00:56]} 23. Rxe5 {[%emt 0:04:07]} Rxe5 {[%emt 0:01:07]} 24. Bf4 {[%emt 0:00:02]} Rbe8 {[%emt 0:00:40]} 25. Bxe5 {[%emt 0:00:54]} Rxe5 {[%emt 0:00:22]} 26. Re1 {[%emt 0:00:31]} Rxe1+ {[%emt 0:03:23]} 27. Qxe1 {[%emt 0:05:12]} d4 {[%emt 0:04:09]} 28. Qe5 {[%emt 0:00:26]} dxc3 {[%emt 0:01:21]} 29. Qxc3 {[%emt 0:00:02]} a6 {[%emt 0:03:38]} 30. Qf6 {[%emt 0:02:20]} Qb7 {[%emt 0:02:09]} 31. Qd8+ {[%emt 0:04:55]} Kg7 {[%emt 0:00:18]} 32. Qd4+ {[%emt 0:15:28]} Kg8 {[%emt 0:34:05]} 33. Qd8+ {[%emt 0:00:00]} Kg7 {[%emt 0:00:00]} 1/2-1/2

[Event "Niedersachsen-ch B 2024"]
[Site "Verden Aller"]
[Date "2024.01.04"]
[Round "1.17"]
[White "Pac, Maksym"]
[Black "Juergenpott, Maximilian"]
[Result "1-0"]
[ECO "C11"]
[WhiteElo "1416"]
[BlackElo "1660"]
[Annotator "NA RC"]
[PlyCount "51"]
[EventDate "2024.01.01"]
[EventType "swiss"]
[EventCountry "GER"]
[SourceTitle "playchess.com"]
[Source "ChessBase"]
[SourceQuality "1"]
[TimeControl "40/5400+30:1800+30"]

1. d4 {[%emt 0:00:01]} Nf6 {[%emt 0:00:10]} 2. Nc3 {[%emt 0:00:04]} e6 {[%emt 0:00:05]} 3. e4 {[%emt 0:00:03]} d5 {[%emt 0:00:04]} 4. e5 {[%emt 0:00:03]} Nfd7 {[%emt 0:00:05]} 5. f4 {[%emt 0:00:04]} c5 {[%emt 0:00:05]} 6. Nf3 {[%emt 0:00:05]} Nc6 {[%emt 0:00:06]} 7. Be3 {[%emt 0:01:16]} Be7 {[%emt 0:04:33]} 8. Be2 {[%emt 0:03:28]} O-O {[%emt 0:01:22]} 9. O-O {[%emt 0:01:29]} cxd4 {[%emt 0:15:00]} 10. Nxd4 {[%emt 0:00:18]} Nxd4 {[%emt 0:00:06]} 11. Bxd4 {[%emt 0:00:33]} f6 {[%emt 0:02:45]} 12. Bg4 {[%emt 0:05:58]} Nc5 {[%emt 0:00:25]} 13. exf6 {[%emt 0:02:30]} Rxf6 {[%emt 0:09:25]} 14. Bxf6 {[%emt 0:01:56]} Bxf6 {[%emt 0:00:07]} 15. Qd2 {[%emt 0:01:21]} Qb6 {[%emt 0:01:02]} 16. Kh1 {[%emt 0:03:50]} d4 {[%emt 0:02:57]} 17. Ne2 {[%emt 0:06:06]} Ne4 {[%emt 0:10:24]} 18. Qd3 {[%emt 0:00:24]} Nc5 {[%emt 0:00:11]} 19. Qc4 {[%emt 0:03:28]} Bd7 {[%emt 0:09:29]} 20. Nxd4 {[%emt 0:06:13]} Rc8 {[%emt 0:00:38]} 21. Rae1 {[%emt 0:09:33]} Kh8 {[%emt 0:23:31]} 22. c3 {[%emt 0:03:02]} Qxb2 {[%emt 0:06:06]} 23. Qe2 {[%emt 0:10:11]} Qxc3 {[%emt 0:01:38]} 24. Nxe6 {[%emt 0:00:14]} Re8 {[%emt 0:02:03]} 25. Rc1 {[%emt 0:02:25]} Qb4 {[%emt 0:01:54]} 26. Rxc5 {[%emt 0:01:11]} 1-0

[Event "Niedersachsen-ch B 2024"]
[Site "Verden Aller"]
[Date "2024.01.04"]
[Round "1.18"]
[White "Direk, Oguzhan"]
[Black "Zweck, Gerhard"]
[Result "0-1"]
[ECO "B07"]
[WhiteElo "1657"]
[BlackElo "1414"]
[Annotator "NA RC"]
[PlyCount "71"]
[EventDate "2024.01.01"]
[EventType "swiss"]
[EventCountry "GER"]
[SourceTitle "playchess.com"]
[Source "ChessBase"]
[SourceQuality "1"]
[TimeControl "40/5400+30:1800+30"]

1. d4 {[%emt 0:00:10]} Nf6 {[%emt 0:00:18]} 2. Nc3 {[%emt 0:00:07]} g6 {[%emt 0:02:49]} 3. Bf4 {[%emt 0:18:36]} Bg7 {[%emt 0:02:46]} 4. e4 {[%emt 0:00:49]} d6 {[%emt 0:03:10]} 5. Qd2 {[%emt 0:01:19]} c6 {[%emt 0:05:19]} 6. O-O-O {[%emt 0:00:50]} Qa5 {[%emt 0:03:27]} 7. Kb1 {[%emt 0:01:25]} Be6 {[%emt 0:03:42]} 8. Nf3 {[%emt 0:03:16]} Nxe4 {[%emt 0:02:26]} 9. Qe3 {[%emt 0:00:26]} Nxc3+ {[%emt 0:01:47]} 10. Qxc3 {[%emt 0:00:08]} Bxa2+ {[%emt 0:02:25]} 11. Ka1 {[%emt 0:00:36]} Qxc3 {[%emt 0:00:37]} 12. bxc3 {[%emt 0:00:03]} Bd5 {[%emt 0:00:37]} 13. Be2 {[%emt 0:00:29]} b5 {[%emt 0:03:35]} 14. Rhe1 {[%emt 0:00:39]} O-O {[%emt 0:01:50]} 15. Bd3 {[%emt 0:00:15]} b4 {[%emt 0:03:52]} 16. Rxe7 {[%emt 0:01:52]} bxc3 {[%emt 0:01:21]} 17. Bxd6 {[%emt 0:00:41]} Bf6 {[%emt 0:08:11]} 18. Re3 {[%emt 0:01:21]} Nd7 {[%emt 0:01:21]} 19. Bxf8 {[%emt 0:00:30]} Rxf8 {[%emt 0:00:22]} 20. Be4 {[%emt 0:00:29]} Nb6 {[%emt 0:01:21]} 21. Rdd3 {[%emt 0:07:23]} Nc4 {[%emt 0:06:31]} 22. Re1 {[%emt 0:01:22]} Rb8 {[%emt 0:01:59]} 23. Bxd5 {[%emt 0:01:35]} cxd5 {[%emt 0:00:10]} 24. Rxc3 {[%emt 0:00:34]} Rb4 {[%emt 0:04:37]} 25. Ne5 {[%emt 0:05:36]} Ra4+ {[%emt 0:02:13]} 26. Kb1 {[%emt 0:01:13]} Rb4+ {[%emt 0:00:46]} 27. Ka2 {[%emt 0:01:12]} Ra4+ {[%emt 0:02:33]} 28. Kb3 {[%emt 0:00:43]} Ra3+ {[%emt 0:01:55]} 29. Kb4 {[%emt 0:00:57]} Be7+ {[%emt 0:01:42]} 30. Kb5 {[%emt 0:00:05]} a6+ {[%emt 0:08:52]} 31. Kc6 {[%emt 0:00:14]} Nxe5+ {[%emt 0:01:16]} 32. Rxe5 {[%emt 0:00:29]} Rxc3+ {[%emt 0:00:30]} 33. Kxd5 {[%emt 0:00:02]} Bf6 {[%emt 0:02:03]} 34. Re2 {[%emt 0:00:14]} a5 {[%emt 0:01:54]} 35. Rd2 {[%emt 0:00:08]} a4 {[%emt 0:01:42]} 36. Ke4 {[%emt 0:00:06]} 0-1